Workbook

Sheet 01.01.2021
A1: AOK / Ersatzkassen / LKK: Bruttobeträge - gültig ab 01.01.2021 - 31.12.2021
A5: Erstdiagnostik:
A6: 33010 = | B6: 99.90 € | C6: (Zuzahlung 9,99 €)
A8: Bedarfsdiagnostik:
A9: 33011 = | B9: 49.95 € | C9: (Zuzahlung 5,00 €)
A12: Der zeitliche Umfang der Vor- und Nachbereitung beträgt in der Regel 10 Min.
A14: 33102 = | B14: 44.40 € | C14: (Zuzahlung 4,44 €)
A15: (30 Min. mit dem Patienten)
A17: 33103 = | B17: 61.05 € | C17: (Zuzahlung 6,11 €)
A18: (45 Min. mit dem Patienten)
A20: 33104 = | B20: 77.70 € | C20: (Zuzahlung 7,77 €)
A21: (60 Min. mit dem Patienten)
A23: Hausbesuch inkl. Wegegeld:
A24: 39933 = | B24: 19.06 € | C24: (Zuzahlung 1,91 €)
A26: Berichte:
A27: 33302 = | B27: 5.55 € | C27: keine Zuzahlung
A28: 33303 = | B28: 99.90 € | C28: keine Zuzahlung | D28: Bericht auf besondere
D29: Anforderung des Arztes !!
A32: Therapiezeit x Anzahl der Therapieeinheiten | C32: inkl. Erstbefundung
A35: 30 Min. x 1 = | B35: 44.40 € | C35: =+B35+$B$6 -> 144.30 €
A36: 45 Min. x 1 = | B36: 61.05 € | C36: =+B36+$B$6 -> 160.95 €
A37: 60 Min. x 1 = | B37: 77.70 € | C37: 177.60 €
A39: 30 Min. x 5 = | B39: =+B35*5 -> 222.00 € | C39: 321.90 €
A40: 45 Min. x 5 = | B40: =+B36*5 -> 305.25 € | C40: 405.15 €
A41: 60 Min. x 5 = | B41: =+B37*5 -> 388.50 € | C41: 488.40 €
A43: 30 Min. x 6 = | B43: =+B35*6 -> 266.40 € | C43: 366.30 €
A44: 45 Min. x 6 = | B44: =+B36*6 -> 366.30 € | C44: 466.20 €
A45: 60 Min. x 6 = | B45: =+B37*6 -> 466.20 € | C45: 566.10 €
A47: 30 Min. x 10 = | B47: =+B35*10 -> 444.00 € | C47: 543.90 €
A48: 45 Min. x 10 = | B48: =+B36*10 -> 610.50 € | C48: 710.40 €
A49: 60 Min. x 10 = | B49: =+B37*10 -> 777.00 € | C49: 876.90 €
A51: 30 Min. x 15 = | B51: =+B35*15 -> 666.00 € | C51: 765.90 €
A52: 45 Min. x 15 = | B52: =+B36*15 -> 915.75 € | C52: 1,015.65 €
A53: 60 Min. x 15 = | B53: =+B37*15 -> 1,165.50 € | C53: 1,265.40 €
A55: 30 Min. x 20 = | B55: =+B35*20 -> 888.00 € | C55: 987.90 €
A56: 45 Min. x 20 = | B56: =+B36*20 -> 1,221.00 € | C56: 1,320.90 €
A57: 60 Min. x 20 = | B57: =+B37*20 -> 1,554.00 € | C57: 1,653.90 €

Sheet 01.01.2022
A1: AOK / Ersatzkassen / LKK: Bruttobeträge - gültig ab 01.01.2022 - 31.12.2022
A5: Erstdiagnostik:
A6: 33010= | B6: 103.40 € | C6: (Zuzahlung 10,34 €)
A8: Bedarfsdiagnostik:
A9: 33011 = | B9: 51.70 € | C9: (Zuzahlung 5,17 €)
A11: Einzelbehandlung:
A12: Der zeitliche Umfang der Vor- und Nachbereitung beträgt in der Regel 10 Min.
A14: 33102 = | B14: 45.95 € | C14: (Zuzahlung 4,60 €)
A15: (30 Min. mit dem Patienten)
A17: 33103 = | B17: 63.19 € | C17: (Zuzahlung 6,32 €)
A18: (45 Min. mit dem Patienten)
A20: 33104 = | B20: 80.42 € | C20: (Zuzahlung 8,04 €)
A21: (60 Min. mit dem Patienten)
A23: Hausbesuch inkl. Wegegeld:
A24: 39933 = | B24: 19.73 € | C24: (Zuzahlung 1,97 €)
A26: Berichte:
A27: 33302 = | B27: 5.74 € | C27: keine Zuzahlung
A28: 33303 = | B28: 103.40 € | C28: keine Zuzahlung | D28: Bericht auf besondere
D29: Anforderung des Arztes !!
A31: Therapiezeit x Anzahl der Therapieeinheiten | C31: inkl. Erstbefundung
A34: 30 Min. x 1 = | B34: 45.95 € | C34: =+B34+$B$6 -> 149.35 €
A35: 45 Min. x 1 = | B35: 63.19 € | C35: =+B35+$B$6 -> 166.59 €
A36: 60 Min. x 1 = | B36: 80.42 € | C36: 183.82 €
A38: 30 Min. x 5 = | B38: =+B34*5 -> 229.75 € | C38: 333.15 €
A39: 45 Min. x 5 = | B39: =+B35*5 -> 315.95 € | C39: 419.35 €
A40: 60 Min. x 5 = | B40: =+B36*5 -> 402.10 € | C40: 505.50 €
A42: 30 Min. x 6 = | B42: =+B34*6 -> 275.70 € | C42: 379.10 €
A43: 45 Min. x 6 = | B43: =+B35*6 -> 379.14 € | C43: 482.54 €
A44: 60 Min. x 6 = | B44: =+B36*6 -> 482.52 € | C44: 585.92 €
A46: 30 Min. x 10 = | B46: =+B34*10 -> 459.50 € | C46: 562.90 €
A47: 45 Min. x 10 = | B47: =+B35*10 -> 631.90 € | C47: 735.30 €
A48: 60 Min. x 10 = | B48: =+B36*10 -> 804.20 € | C48: 907.60 €
A50: 30 Min. x 15 = | B50: =+B34*15 -> 689.25 € | C50: 792.65 €
A51: 45 Min. x 15 = | B51: =+B35*15 -> 947.85 € | C51: 1,051.25 €
A52: 60 Min. x 15 = | B52: =+B36*15 -> 1,206.30 € | C52: 1,309.70 €
A54: 30 Min. x 20 = | B54: =+B34*20 -> 919.00 € | C54: 1,022.40 €
A55: 45 Min. x 20 = | B55: =+B35*20 -> 1,263.80 € | C55: 1,367.20 €
A56: 60 Min. x 20 = | B56: =+B36*20 -> 1,608.40 € | C56: 1,711.80 €

Sheet 01.01.2023
A1: AOK / Ersatzkassen / LKK: Bruttobeträge - gültig ab 01.01.2023 - 30.09.2023
A5: Erstdiagnostik:
A6: 33010= | B6: 107.02 € | C6: (Zuzahlung 10,70€)
A8: Bedarfsdiagnostik:
A9: 33011 = | B9: 53.51 € | C9: (Zuzahlung 5,53 €)
A11: Einzelbehandlung:
A12: Der zeitliche Umfang der Vor- und Nachbereitung beträgt in der Regel 10 Min.
A14: 33102 | B14: 47.56 € | C14: (Zuzahlung 4,76 €)
A15: (30 Min. mit dem Patienten)
A17: 33103 = | B17: 65.40 € | C17: (Zuzahlung 6,54 €)
A18: (45 Min. mit dem Patienten)
A20: 33104 = | B20: 83.23 € | C20: (Zuzahlung 8,32 €)
A21: (60 Min. mit dem Patienten)
A23: Hausbesuch inkl. Wegegeld:
A24: 39933 = | B24: 20.42 € | C24: (Zuzahlung 2,04 €)
A26: Berichte:
A27: 33302 = | B27: 5.95 € | C27: keine Zuzahlung
A28: 33303 = | B28: 107.02 € | C28: keine Zuzahlung | D28: Bericht auf besondere
D29: Anforderung des Arztes !!
A33: 30 Min. x 1 = | B33: 47.56 € | C33: =+B33+$B$6 -> 154.58 €
A34: 45 Min. x 1 = | B34: 65.40 € | C34: =+B34+$B$6 -> 172.42 €
A35: 60 Min. x 1 = | B35: 83.23 € | C35: 190.25 €
A37: 30 Min. x 5 = | B37: =+B33*5 -> 237.80 € | C37: 344.82 €
A38: 45 Min. x 5 = | B38: =+B34*5 -> 327.00 € | C38: 434.02 €
A39: 60 Min. x 5 = | B39: =+B35*5 -> 416.15 € | C39: 523.17 €
A41: 30 Min. x 6 = | B41: =+B33*6 -> 285.36 € | C41: 392.38 €
A42: 45 Min. x 6 = | B42: =+B34*6 -> 392.40 € | C42: 499.42 €
A43: 60 Min. x 6 = | B43: =+B35*6 -> 499.38 € | C43: 606.40 €
A45: 30 Min. x 10 = | B45: =+B33*10 -> 475.60 € | C45: 582.62 €
A46: 45 Min. x 10 = | B46: =+B34*10 -> 654.00 € | C46: 761.02 €
A47: 60 Min. x 10 = | B47: =+B35*10 -> 832.30 € | C47: 939.32 €
A49: 30 Min. x 15 = | B49: =+B33*15 -> 713.40 € | C49: 820.42 €
A50: 45 Min. x 15 = | B50: =+B34*15 -> 981.00 € | C50: 1,088.02 €
A51: 60 Min. x 15 = | B51: =+B35*15 -> 1,248.45 € | C51: 1,355.47 €
A53: 30 Min. x 20 = | B53: =+B33*20 -> 951.20 € | C53: 1,058.22 €
A54: 45 Min. x 20 = | B54: =+B34*20 -> 1,308.00 € | C54: 1,415.02 €
A55: 60 Min. x 20 = | B55: =+B35*20 -> 1,664.60 € | C55: 1,771.62 €

Sheet 01.10.2023
A1: AOK / Ersatzkassen / LKK: Bruttobeträge - gültig ab 01.10.23 - 30.06.2024
A5: Erstdiagnostik:
A6: 33010= | B6: 110.76 € | C6: (Zuzahlung 11,08 €)
A8: Bedarfsdiagnostik:
A9: 33011 = | B9: 55.38 € | C9: (Zuzahlung 5,54 €)
A11: Einzelbehandlung:
A12: Der zeitliche Umfang der Vor- und Nachbereitung beträgt in der Regel 10 Min.
A14: 33102 = | B14: 49.23 € | C14: (Zuzahlung 4,92 €)
A15: (30 Min. mit dem Patienten)
A17: 33103 = | B17: 67.69 € | C17: (Zuzahlung 6,77 €)
A18: (45 Min. mit dem Patienten)
A20: 33104 = | B20: 86.15 € | C20: (Zuzahlung 8,62 €)
A21: (60 Min. mit dem Patienten)
A23: Hausbesuch inkl. Wegegeld:
A24: 39933 = | B24: 21.13 € | C24: (Zuzahlung 2,11 €)
A26: Berichte:
A27: 33302 = | B27: 6.15 € | C27: keine Zuzahlung
A28: 33303 = | B28: 110.76 € | C28: keine Zuzahlung | D28: Bericht auf besondere
D29: Anforderung des Arztes !!
A33: 30 Min. x 1 = | B33: 49.23 € | C33: =+B33+$B$6 -> 159.99 €
A34: 45 Min. x 1 = | B34: 67.69 € | C34: =+B34+$B$6 -> 178.45 €
A35: 60 Min. x 1 = | B35: 86.15 € | C35: 196.91 €
A37: 30 Min. x 5 = | B37: =+B33*5 -> 246.15 € | C37: 356.91 €
A38: 45 Min. x 5 = | B38: =+B34*5 -> 338.45 € | C38: 449.21 €
A39: 60 Min. x 5 = | B39: =+B35*5 -> 430.75 € | C39: 541.51 €
A41: 30 Min. x 6 = | B41: =+B33*6 -> 295.38 € | C41: 406.14 €
A42: 45 Min. x 6 = | B42: =+B34*6 -> 406.14 € | C42: 516.90 €
A43: 60 Min. x 6 = | B43: =+B35*6 -> 516.90 € | C43: 627.66 €
A45: 30 Min. x 10 = | B45: =+B33*10 -> 492.30 € | C45: 603.06 €
A46: 45 Min. x 10 = | B46: =+B34*10 -> 676.90 € | C46: 787.66 €
A47: 60 Min. x 10 = | B47: =+B35*10 -> 861.50 € | C47: 972.26 €
A49: 30 Min. x 15 = | B49: =+B33*15 -> 738.45 € | C49: 849.21 €
A50: 45 Min. x 15 = | B50: =+B34*15 -> 1,015.35 € | C50: 1,126.11 €
A51: 60 Min. x 15 = | B51: =+B35*15 -> 1,292.25 € | C51: 1,403.01 €
A53: 30 Min. x 20 = | B53: =+B33*20 -> 984.60 € | C53: 1,095.36 €
A54: 45 Min. x 20 = | B54: =+B34*20 -> 1,353.80 € | C54: 1,464.56 €
A55: 60 Min. x 20 = | B55: =+B35*20 -> 1,723.00 € | C55: 1,833.76 €
